bitfinex-derivatives/quotes_ETHF0:USTF0_20250327
["timestamp","ask_amount","ask_price","bid_price","bid_amount"]
[1743086371151,1.384,2017.0,2016.9,0.99189]
[1743086371350,0.7164,2017.2,2017.1,0.9918]
[1743086371547,0.71920084,2017.1,2017.0,0.99181]
[1743086372049,2.13580084,2017.1,2017.0,0.99181]
[1743086372954,0.99184,2017.0,2016.9,3.2078]
[1743086373149,3.12764084,2017.0,2016.9,3.2078]
[1743086375446,3.12764084,2017.0,2016.9,4.19969]
[1743086376246,3.12764084,2017.0,2016.9,3.2078]
[1743086376844,3.12764084,2017.0,2016.9,4.19969]
[1743086377249,6.6e-07,2017.3,2017.2,0.99175]
[1743086377545,2.47827,2018.1,2017.7,0.9915]
[1743086377546,1.3553,2017.8,2017.7,0.9915]
[1743086377750,0.9915,2017.7,2017.6,3.2078]
[1743086378155,1.71070084,2017.7,2017.6,3.2078]
[1743086378351,0.71920084,2017.7,2017.6,3.2078]
[1743086378557,0.71920084,2017.7,2017.6,4.19935]
[1743086378853,1.71070084,2017.7,2017.6,3.2078]
[1743086379047,2.07450084,2017.7,2017.6,4.19935]
[1743086379447,0.71920084,2017.7,2017.6,4.19935]
[1743086379656,2.34667,2018.0,2017.8,0.99141]
[1743086379846,2.34667,2018.0,2017.6,3.2078]
[1743086379847,0.71920084,2017.7,2017.6,4.19935]
[1743086380047,0.71920084,2017.7,2017.6,4.69033336]
[1743086380347,1.3553,2018.0,2017.9,0.9914]
[1743086380550,2.34665,2018.0,2017.9,0.9914]
[1743086380748,2.34665,2018.0,2017.9,4.1992]
[1743086380749,1.3553,2018.0,2017.9,4.1992]
[1743086380948,2.47776,2018.6,2017.9,5.68627]
[1743086381153,0.71920084,2018.1,2018.0,2.35505]
[1743086381355,0.71920084,2018.1,2018.0,5.56285]
[1743086381556,1.4223,2018.2,2018.1,0.9913]
[1743086381752,2.14150084,2018.2,2018.1,0.9913]
[1743086381952,1.4223,2018.2,2018.1,0.9913]
[1743086384355,3.2078,2021.9,2020.5,3.2078]
[1743086384656,0.71919852,2021.9,2021.7,3.2078]
[1743086384954,0.98949,2021.8,2021.7,3.2078]
[1743086385458,2.47342,2022.1,2021.2,1.38]
[1743086385459,3.2078,2022.1,2021.4,3.2078]
[1743086385654,0.7123,2023.1,2021.5,0.00742133]
[1743086385655,1.3301,2022.0,2021.5,0.00742133]
[1743086385861,0.98959,2021.6,2021.5,0.00742133]
[1743086386063,0.98964,2021.5,2021.4,3.2078]
[1743086386452,2.4739,2021.7,2021.2,0.98975]
[1743086386655,0.00735691,2021.8,2021.1,3.2078]
[1743086386858,0.00735691,2021.8,2021.2,1.3676]
[1743086387060,0.00735691,2021.8,2021.4,3.2078]
[1743086387262,0.98964,2021.5,2021.4,3.2078]
[1743086387553,0.00735691,2021.8,2021.4,3.2078]
[1743086387758,40.8,2021.9,2021.4,3.2078]
[1743086387959,2.47264,2022.7,2021.9,2.47357]
[1743086388161,2.4729,2022.5,2022.0,0.98938]
[1743086388460,0.98929,2022.2,2022.1,3.2078]
[1743086388658,44.0078,2022.5,2022.1,4.19713]
[1743086388863,43.27289,2022.5,2021.8,3.2078]
[1743086389156,0.98929,2022.2,2022.1,0.00742133]
[1743086389355,2.47324,2022.2,2021.2,3.2078]
[1743086389556,2.47364,2021.9,2021.2,3.2078]
[1743086389763,0.98964,2021.5,2021.4,0.98967]
[1743086389959,0.98969,2021.4,2021.3,2.3692]
[1743086390157,2.47387,2021.7,2021.2,4.19756]
[1743086390360,41.78973,2021.3,2021.2,3.2078]
[1743086390659,40.8,2021.3,2021.2,4.20500133]
[1743086390864,41.78973,2021.3,2021.2,4.20500133]
[1743086391055,41.78973,2021.3,2021.2,3.21522133]
[1743086391564,41.78973,2021.3,2021.2,0.00742133]
[1743086392460,43.13343,2021.3,2021.2,0.00742133]
[1743086393959,45.63343,2021.3,2021.2,0.00742133]
[1743086394160,41.78973,2021.3,2021.2,0.00742133]
[1743086394467,41.78973,2021.3,2021.2,3.21522133]
[1743086394766,41.78973,2021.3,2021.2,0.00742133]
[1743086394957,41.78973,2021.3,2021.2,3.21522133]
[1743086395753,41.78973,2021.3,2021.2,0.00742133]
[1743086396159,44.28973,2021.3,2021.2,0.00742133]
[1743086396354,45.70113,2021.3,2021.2,0.00742133]
[1743086396659,43.20113,2021.3,2021.2,3.21522133]
[1743086396862,43.20113,2021.3,2021.2,4.20500133]
[1743086397059,0.98973,2021.3,2021.2,3.21522133]
[1743086397460,0.98973,2021.3,2021.2,4.20500133]
[1743086397661,0.98973,2021.3,2021.2,3.21522133]
[1743086398667,0.98973,2021.3,2021.2,3.9524857]
[1743086398862,43.28135133,2021.7,2021.2,3.9524857]
[1743086399060,0.98973,2021.4,2021.3,1.4]
[1743086399257,0.98973,2021.4,2021.3,2.13726437]
[1743086399862,0.98973,2021.4,2021.3,0.73726437]
[1743086400653,2.32063,2021.4,2021.3,0.73726437]
[1743086401066,2.32063,2021.4,2021.3,2.13726437]
[1743086401868,0.98969,2021.4,2021.3,2.13726437]
[1743086402064,0.98969,2021.4,2021.3,0.73726437]
[1743086402564,2.47402,2021.6,2021.3,0.73726437]
[1743086402565,0.00742133,2021.7,2021.6,0.98959]
[1743086402766,2.47302,2022.4,2022.0,0.98938]
[1743086403068,2.47302,2022.4,2021.7,2.47382]
[1743086403069,2.47353,2022.0,2021.7,3.2078]
[1743086403268,0.98949,2021.8,2021.7,4.5027]
[1743086403566,1.3192,2022.2,2021.8,0.98944]
[1743086403776,0.98934,2022.1,2022.0,3.2078]
[1743086404668,0.98934,2022.1,2022.0,3.94506437]
[1743086404871,11.67614,2022.1,2022.0,0.73726437]
[1743086405166,0.98969,2021.4,2021.3,3.2078]
[1743086405374,0.98973,2021.3,2021.2,5.99542133]
[1743086405558,0.98973,2021.3,2021.2,0.00742133]
[1743086406174,0.99003,2020.7,2020.6,3.2078]
[1743086406365,0.99003,2020.7,2020.6,1.3118]
[1743086406673,0.99003,2020.7,2020.6,4.5196]
[1743086406970,0.99003,2020.7,2020.6,5.50968]
[1743086407167,0.99003,2020.7,2020.6,7.16783769]
[1743086407370,0.99003,2020.7,2020.6,8.15791769]
[1743086407572,0.99003,2020.7,2020.6,7.16783769]
[1743086407773,0.99003,2020.7,2020.6,3.96003769]
[1743086408073,0.99001,2020.8,2020.6,4.38479453]
[1743086408371,0.99741133,2020.9,2020.8,0.98998]
[1743086408767,0.98998,2020.8,2020.7,3.51329453]
[1743086408969,0.98998,2020.8,2020.7,3.51332453]
[1743086409163,0.00742133,2020.9,2020.8,0.98998]
[1743086409371,3.2078,2021.4,2021.3,0.98973]
[1743086409566,3.2078,2021.4,2020.8,10.972]
[1743086409567,0.98993,2020.9,2020.8,2.60875201]
[1743086409763,0.98982,2021.2,2020.8,8.29150201]
[1743086409963,0.9899,2021.1,2021.0,0.98987]
[1743086410173,0.98987,2021.1,2021.0,0.98984]
[1743086410363,0.98987,2021.1,2020.9,1.3463]
[1743086410561,0.98988,2021.0,2020.8,2.60875201]
[1743086410766,0.98988,2021.0,2020.7,0.74559229]
[1743086410767,0.98998,2020.8,2020.7,0.74559229]
[1743086411367,2.36218,2020.8,2020.7,0.74559229]
[1743086411573,2.36218,2020.8,2020.7,2.58752137]
[1743086411768,2.36218,2020.8,2020.7,1.43028137]
[1743086411769,4.86218,2020.8,2020.7,1.43028137]
[1743086411971,2.36218,2020.8,2020.7,1.43028137]
[1743086412575,2.36218,2020.8,2020.7,9.5e-06]
[1743086412875,0.99013,2020.5,2020.4,1.33e-06]
[1743086413076,4.19793,2020.5,2020.4,1.33e-06]
[1743086413873,4.19793,2020.5,2020.4,0.50879709]
[1743086414075,4.19793,2020.5,2020.4,0.5087809]
[1743086414269,4.19793,2020.5,2020.4,4.86922839]
[1743086414470,4.19793,2020.5,2020.4,3.1334561]
[1743086414670,4.19793,2020.5,2020.4,4.1236361]
[1743086414867,4.19793,2020.5,2020.4,4.4774561]
[1743086415075,4.19793,2020.5,2020.4,5.23168482]
[1743086415374,4.19793,2020.5,2020.4,3.30363425]
[1743086415580,4.19793,2020.5,2020.4,2.54940553]
[1743086415781,4.19793,2020.5,2020.4,2.54972221]
[1743086416375,4.19793,2020.5,2020.4,0.82923837]
[1743086416578,4.19793,2020.5,2020.4,7.04e-06]
[1743086416776,0.99032,2020.1,2020.0,0.75422872]
[1743086416973,0.99026,2020.3,2020.2,0.99025]
[1743086417279,0.99024,2020.3,2020.2,1.51033929]
[1743086417473,0.99026,2020.3,2020.2,3.61404775]
[1743086417783,0.99026,2020.3,2020.2,4.28995419]
[1743086417980,0.99026,2020.3,2020.2,3.29970419]
[1743086418582,0.99026,2020.3,2020.2,1.3722003]
[1743086418880,4.19806,2020.3,2020.2,1.3722003]
[1743086419080,4.19806,2020.3,2020.2,0.67590644]
[1743086419283,6.69806,2020.3,2020.2,6.44e-06]
[1743086419978,0.99032,2020.1,2020.0,1.33e-06]
[1743086420177,5.94932,2020.1,2020.0,1.33e-06]
[1743086420377,8.44932,2020.1,2020.0,1.33e-06]
[1743086420578,9.74652,2020.1,2020.0,1.33e-06]
[1743086421277,4.78752,2020.1,2020.0,1.33e-06]
[1743086421678,50.53752,2020.1,2020.0,1.33e-06]
[1743086423184,45.58752,2020.1,2020.0,1.33e-06]
[1743086423379,9.71752,2020.1,2020.0,1.33e-06]
[1743086423682,7.21752,2020.1,2020.0,1.33e-06]
[1743086424070,2.28752,2020.1,2020.0,1.33e-06]
[1743086425979,4.78752,2020.1,2020.0,1.33e-06]
[1743086426583,0.99067,2019.4,2019.3,1.4188]
[1743086427077,0.99091,2018.9,2018.8,3.2078]
[1743086427281,0.99091,2018.9,2018.8,4.6266]
[1743086427678,0.9909,2019.0,2018.8,4.6266]
[1743086427884,0.00742133,2019.1,2019.0,0.99086]
[1743086428084,0.99079,2019.2,2019.1,0.99077]
[1743086428283,0.99073,2019.3,2019.2,0.99072]
[1743086428490,0.99073,2019.3,2019.2,1.4188]
[1743086430381,0.99073,2019.3,2019.2,2.40956]
[1743086430575,0.99071,2019.4,2019.3,0.99069]
[1743086430779,0.00742133,2019.5,2019.4,0.99067]
[1743086430975,0.99804133,2019.5,2019.4,4.19847]
[1743086431188,0.00742133,2019.5,2019.4,4.19847]
[1743086431689,0.99804133,2019.5,2019.4,5.62097]
[1743086431889,0.00742133,2019.5,2019.4,5.62097]
[1743086432292,0.00742133,2019.5,2019.4,6.26394154]
[1743086432592,0.99804133,2019.5,2019.4,6.26394154]
[1743086432983,0.99804133,2019.5,2019.4,4.6303]
[1743086433183,0.99804133,2019.5,2019.4,5.62097]
[1743086433986,0.99804133,2019.5,2019.4,4.6303]
[1743086434186,0.00742133,2019.5,2019.1,3.2078]
[1743086434485,0.00742133,2019.5,2019.1,4.5444]
[1743086434486,0.99076,2019.2,2019.1,4.5444]
[1743086434685,0.99076,2019.2,2019.1,3.2078]
[1743086435097,0.99081,2019.1,2019.0,0.6539]
[1743086435298,0.99081,2019.2,2019.1,0.9908]
[1743086435594,0.99081,2019.2,2019.1,4.1986]
[1743086435794,0.99076,2019.2,2019.1,4.19857]
[1743086435991,0.99076,2019.2,2019.1,3.2078]
[1743086436193,0.99076,2019.2,2019.1,4.19861]
[1743086436401,0.99076,2019.2,2019.1,3.2078]
[1743086436695,0.99044,2019.9,2019.8,0.99047]
[1743086436992,0.99028,2020.2,2019.8,2.47613]
[1743086437197,2.47533,2020.5,2020.0,3.2078]
[1743086437497,2.47533,2020.5,2020.1,0.99032]
[1743086437795,0.9903,2020.2,2020.0,3.2078]
[1743086437994,0.9903,2020.2,2020.1,0.00742133]
[1743086438895,2.3645,2020.2,2020.1,0.00742133]
[1743086439285,2.3645,2020.2,2019.6,9.8953]
[1743086439286,0.99047,2019.9,2019.6,9.8953]
[1743086439483,3.84996,2020.2,2019.7,0.99049]
[1743086439683,0.99047,2019.8,2019.6,10.88584]
[1743086440294,1.3742,2020.0,2019.7,0.9905]
[1743086440592,1.3742,2020.0,2019.6,9.8953]
[1743086440593,0.99047,2019.8,2019.6,9.8953]
[1743086440793,0.99047,2019.8,2019.6,10.88586]
[1743086441094,0.99786133,2019.9,2019.7,0.99047]
[1743086441290,0.00742133,2019.9,2019.6,9.8953]
[1743086441484,0.99787133,2019.9,2019.7,0.9905]
[1743086441689,0.99047,2019.8,2019.7,0.9905]
[1743086442099,0.00742133,2019.9,2019.8,0.99047]
[1743086442693,0.99784133,2019.9,2019.8,0.99047]
[1743086442896,0.00742133,2019.9,2019.8,0.99047]
[1743086443294,0.99049,2019.8,2019.7,0.9905]
[1743086443589,0.99052,2019.7,2019.6,9.8953]
[1743086443790,0.99052,2019.7,2019.6,3.2078]
[1743086444196,0.99787133,2019.9,2019.6,3.2078]
[1743086444397,0.99047,2019.8,2019.7,0.99048]
[1743086444598,0.99788133,2019.9,2019.7,0.99048]
[1743086444795,0.99047,2019.8,2019.6,4.19834]
[1743086444989,0.99052,2019.7,2019.6,4.19834]
[1743086445902,0.99052,2019.7,2019.6,3.2078]
[1743086446493,0.99057,2019.6,2019.5,0.00742133]
[1743086446885,0.99057,2019.6,2019.5,0.99801133]
[1743086447096,1.3856,2019.8,2019.5,0.99801133]
[1743086447397,0.99057,2019.6,2019.5,0.00742133]
[1743086448202,0.99076,2019.2,2019.0,4.19864]
[1743086448390,0.99075,2019.3,2019.1,0.99081]
[1743086448591,0.99076,2019.2,2019.1,0.99081]
[1743086449000,0.99081,2019.1,2019.0,3.2078]
[1743086449492,0.99081,2019.1,2019.0,3.85666115]
[1743086450002,0.99091,2018.9,2018.8,10.70042133]
[1743086450304,0.99091,2018.9,2018.8,0.00742133]
[1743086450498,0.99086,2019.0,2018.9,0.99089]
[1743086450799,0.99085,2019.1,2018.9,0.99089]
[1743086450994,0.99085,2019.1,2019.0,1.4127]
[1743086451386,0.99085,2019.1,2019.0,5.61136]
[1743086451992,0.99079,2019.2,2019.1,0.99079]
[1743086452188,0.7148,2019.4,2019.0,4.6205]
[1743086452394,4.58212,2019.4,2019.0,4.6205]
[1743086452699,0.99077,2019.2,2019.1,0.99077]
[1743086452895,0.99081,2019.1,2019.0,4.6205]
[1743086453095,0.99081,2019.1,2019.0,5.61136]
[1743086453699,0.99081,2019.1,2019.0,4.6205]
[1743086453901,0.99081,2019.2,2019.1,0.99081]
[1743086454503,0.99081,2019.1,2019.0,5.61134]
[1743086454902,0.6879,2019.6,2019.0,9.5976]
[1743086455104,0.99065,2019.5,2019.4,0.99065]
[1743086455294,0.99071,2019.4,2019.3,0.99071]
[1743086455490,0.99065,2019.5,2019.4,0.99065]
[1743086455997,1.3087,2019.5,2019.4,0.99065]
[1743086456196,0.6879,2019.6,2019.5,0.99062]
[1743086456402,0.6879,2019.6,2019.4,1.3152]
[1743086456403,0.99054,2019.7,2019.6,0.99054]
[1743086456602,0.99054,2019.7,2019.6,4.19834]
[1743086456991,0.99054,2019.7,2019.6,3.2078]
[1743086457200,0.99062,2019.5,2019.4,2.30582]
[1743086457798,0.99062,2019.5,2019.4,2.30587]
[1743086458203,2.37641,2019.6,2019.5,0.99062]
[1743086458408,2.37641,2019.6,2019.5,2.36372]
[1743086458614,2.37641,2019.6,2019.3,7.8488]
[1743086458615,0.99067,2019.4,2019.3,7.8488]
[1743086458801,0.99067,2019.4,2019.3,3.2078]
[1743086459506,0.99071,2019.3,2019.2,0.99076]
[1743086459816,0.9906,2019.6,2019.5,0.99059]
[1743086460106,0.00742133,2019.9,2019.4,5.68438]
[1743086460302,0.99790133,2019.9,2019.8,0.99047]
[1743086460497,0.99790133,2019.9,2019.8,2.29847]
[1743086461016,0.99047,2019.8,2019.7,3.2078]
[1743086461307,2.34197,2019.8,2019.7,3.2078]
[1743086461702,0.99071,2019.3,2019.2,1.308]
[1743086461898,2.47638,2019.7,2019.3,0.99067]
[1743086462098,0.99071,2019.3,2019.2,1.308]
[1743086462705,3.2078,2020.1,2019.2,1.308]
[1743086462901,1.3477,2019.7,2019.4,3.2078]
[1743086463101,0.99057,2019.6,2019.5,2.38092]
[1743086463302,2.33825,2019.7,2019.6,0.99057]
[1743086463502,0.99057,2019.6,2019.5,2.38088]
[1743086463704,1.3477,2019.6,2019.5,2.38088]
[1743086464109,0.99051,2019.8,2019.7,0.99052]
[1743086464308,0.99055,2019.7,2019.6,0.99053]
[1743086464805,2.3382,2019.8,2019.7,0.99052]
[1743086465107,1.3477,2019.8,2019.7,0.99052]
[1743086465308,0.00742133,2019.9,2019.8,0.99047]
[1743086465511,0.99028,2020.3,2020.2,0.99023]
[1743086465716,0.99027,2020.2,2020.1,3.2078]
[1743086465910,2.41987,2020.2,2020.1,4.19812]
[1743086466208,2.41987,2020.2,2020.1,3.2078]
[1743086466603,2.41987,2020.2,2020.1,4.19812]
[1743086466999,0.99037,2020.0,2019.9,0.00742133]
[1743086467209,0.99037,2020.0,2019.9,0.99784133]
[1743086467411,0.99037,2020.0,2019.9,0.00742133]
[1743086468310,0.99037,2020.0,2019.9,0.99784133]
[1743086468912,1.4296,2020.2,2019.9,0.00742133]
[1743086469111,0.99037,2020.1,2020.0,0.99032]
[1743086470610,0.99037,2020.0,2019.9,1.35432133]
[1743086470815,2.47606,2019.9,2019.4,7.7268]
[1743086471109,0.99056,2019.7,2019.6,0.99052]
[1743086471815,5.68368,2020.1,2019.5,1.3469]
[1743086472010,0.99057,2019.7,2019.6,0.99052]
[1743086472214,0.6484,2020.0,2019.9,0.99042]
[1743086472508,2.31157,2020.0,2019.9,0.99042]
[1743086472711,0.99042,2019.9,2019.8,2.33653]
[1743086472906,2.31158,2020.0,2019.9,0.99042]
[1743086473112,0.99034,2020.1,2020.0,0.99032]
[1743086473702,1.3212,2020.1,2020.0,0.99032]
[1743086473914,0.6488,2020.2,2020.1,0.99032]
[1743086474113,1.63908,2020.2,2020.1,0.99032]
[1743086474314,2.96028,2020.2,2020.1,0.99032]
[1743086474515,2.96028,2020.2,2020.1,1.3461]
[1743086474715,2.96028,2020.2,2020.1,2.33642]
[1743086475110,0.99032,2020.1,2020.0,4.19816]
[1743086475311,2.32872,2020.1,2020.0,4.19816]
[1743086476106,2.47605,2020.0,2019.7,3.2078]
[1743086476312,0.99047,2019.8,2019.7,3.2078]
[1743086476611,0.99062,2019.5,2019.4,0.00742133]
[1743086476814,0.99062,2019.5,2019.4,1.43312133]
[1743086477719,5.18598,2019.7,2019.5,0.99059]
[1743086477720,0.9906,2019.6,2019.5,0.99059]
[1743086477918,0.99062,2019.5,2019.4,2.42374133]
[1743086478321,0.99062,2019.5,2019.4,1.43312133]
[1743086478620,0.99062,2019.5,2019.4,0.00742133]
[1743086480815,1.3715,2019.6,2019.5,0.99062]
[1743086481011,0.99062,2019.5,2019.4,2.42455133]
[1743086481211,1.3715,2019.6,2019.5,0.99062]
[1743086481417,2.36173,2019.7,2019.6,0.99057]
[1743086481915,0.6578,2019.7,2019.6,4.19837]
[1743086482118,1.64832,2019.7,2019.6,3.2078]
[1743086482417,1.64832,2019.7,2019.6,4.19837]
[1743086483317,1.3904,2019.9,2019.8,0.99047]
[1743086483518,0.99039,2020.0,2019.9,0.99036]
[1743086484210,1.3904,2020.1,2019.7,3.90274]
[1743086484211,1.3904,2020.1,2020.0,0.99037]
[1743086484416,0.99761133,2020.4,2019.9,9.1958]
[1743086484618,2.36991133,2020.4,2020.3,0.99022]
[1743086485113,1.37972133,2020.4,2020.3,2.35232]
[1743086485419,2.36990133,2020.4,2020.3,1.3621]
[1743086485727,2.36990133,2020.4,2020.3,2.35232]
[1743086486316,0.00742133,2020.4,2020.3,2.35232]
[1743086488024,0.00742133,2020.4,2020.3,2.99928499]
[1743086489211,5.68243,2021.1,2020.3,8.98728499]
[1743086489416,0.98976,2021.3,2021.2,0.98975]
[1743086489724,0.98976,2021.3,2021.0,3.2078]
[1743086489725,0.98983,2021.1,2021.0,3.2078]
[1743086489928,0.98998,2020.8,2020.7,3.2078]
[1743086490112,0.99003,2020.7,2020.6,1.408]
[1743086490622,3.18224,2020.9,2020.8,0.98998]
[1743086490623,0.00742133,2020.9,2020.8,0.98998]
[1743086490922,0.7074,2021.4,2020.8,7.6038]
[1743086491120,42.49711,2021.4,2021.1,4.19763]
[1743086491425,42.49711,2021.4,2021.2,1.408]
[1743086491821,1.69711,2021.4,2021.2,1.408]
[1743086492120,0.7074,2021.4,2021.2,2.39777]
[1743086492317,3.2078,2022.0,2021.2,1.408]
[1743086492522,3.2078,2022.0,2021.3,0.9897]
[1743086492523,0.98966,2021.5,2021.3,0.9897]
[1743086492830,0.98973,2021.3,2021.1,4.19762]
[1743086493012,0.98973,2021.3,2021.2,0.00742133]
[1743086494526,1.68823,2021.3,2021.2,0.00742133]
[1743086495521,0.98973,2021.3,2021.2,0.00742133]
[1743086496023,2.28303,2021.3,2021.2,0.00742133]
[1743086496720,0.98993,2020.9,2020.8,3.2078]
[1743086497521,0.98993,2020.9,2020.2,3.13705]
[1743086497522,0.99022,2020.3,2020.2,3.2078]
[1743086497721,0.9902,2020.4,2020.2,5.57937]
[1743086497924,0.99756133,2020.5,2020.3,0.99021]
[1743086498221,0.99756133,2020.5,2020.4,1.3813]
[1743086498524,0.99021,2020.4,2020.2,4.19805]
[1743086499122,0.99021,2020.4,2020.3,0.99022]
[1743086499327,0.99021,2020.4,2020.3,1.3111]
[1743086500418,0.99018,2020.4,2020.3,1.3111]
[1743086502826,0.00742133,2020.5,2020.4,0.99018]
[1743086503835,0.99755133,2020.5,2020.4,1.3462]
[1743086504021,0.00742133,2020.5,2020.4,2.33638]
[1743086504829,0.99755133,2020.5,2020.4,2.33638]
[1743086505131,0.99755133,2020.5,2020.4,1.3462]
[1743086505524,0.99755133,2020.5,2020.4,2.33638]
[1743086505733,0.99755133,2020.5,2020.4,1.3462]
[1743086506026,0.00742133,2020.5,2020.3,5.988]
[1743086506226,0.99018,2020.4,2020.3,5.988]
[1743086506829,0.99759133,2020.5,2020.4,0.99018]
[1743086507031,0.99759133,2020.5,2020.4,2.41408]
[1743086508023,0.99759133,2020.5,2020.4,1.4239]
[1743086509832,0.99759133,2020.5,2020.4,2.41408]
[1743086510336,0.00742133,2020.5,2020.4,2.41408]
[1743086511335,0.99755133,2020.5,2020.4,2.41408]
[1743086512429,0.00742133,2020.5,2020.4,2.41408]
[1743086514333,0.00742133,2020.5,2020.4,5.62188]
[1743086514935,3.2078,2021.0,2020.4,4.6317]
[1743086515137,2.40808,2021.2,2021.1,0.98983]
[1743086515433,0.9897,2021.4,2021.3,0.98973]
[1743086515641,2.408,2021.4,2021.3,0.98973]
[1743086516231,1.4183,2021.4,2021.3,0.98973]
[1743086516435,3.2078,2021.6,2021.5,0.98964]
[1743086516732,1.4183,2021.7,2021.6,0.98959]
[1743086516928,1.4183,2021.7,2021.6,2.30609]
[1743086517528,0.9895,2021.8,2021.6,1.3165]
[1743086517725,0.6513,2021.9,2021.8,0.98949]
[1743086517940,1.64074,2021.9,2021.8,0.98949]
[1743086518440,0.98949,2021.8,2021.7,2.3876]
[1743086518734,2.37019,2021.8,2021.7,2.3876]
[1743086519036,0.98959,2021.7,2021.6,0.98955]
[1743086519234,0.98944,2022.0,2021.9,0.98941]
[1743086520434,2.30469,2022.1,2022.0,0.98939]
[1743086520640,0.98943,2022.0,2021.9,0.9894]
[1743086521845,1.411,2022.0,2021.9,0.9894]
[1743086522733,3.2078,2022.5,2021.8,3.2078]
[1743086522931,3.208,2022.6,2022.5,0.98915]
[1743086523132,3.208,2022.8,2022.7,0.98905]
[1743086523339,3.208,2023.0,2022.7,7.3728]
[1743086523542,0.98895,2022.9,2022.8,2.35877]
[1743086523836,0.98895,2022.9,2022.8,1.3698]
[1743086523837,4.19675,2022.9,2022.8,1.3698]
[1743086524033,4.19675,2022.9,2022.5,0.00742133]
[1743086524034,0.9891,2022.6,2022.5,0.99655133]
[1743086524236,0.9891,2022.6,2022.5,0.00742133]
[1743086524629,1.375,2022.9,2022.5,1.37722133]
[1743086524839,0.98903,2022.8,2022.7,0.98905]
[1743086525040,1.375,2022.9,2022.5,1.37722133]
[1743086525343,0.98899,2022.9,2022.8,0.989]
[1743086525634,3.208,2023.0,2022.9,0.98895]
[1743086526734,0.98895,2022.9,2022.8,1.3698]
[1743086527734,4.51351,2023.0,2022.5,5.99542133]
[1743086527934,1.347,2022.9,2022.6,3.2078]
[1743086528135,0.98905,2022.7,2022.6,3.2078]
[1743086528444,1.347,2022.9,2022.6,3.2078]
[1743086528638,0.98903,2022.8,2022.7,1.3529]
[1743086528834,2.33598,2022.9,2022.8,0.989]
[1743086529034,1.347,2022.9,2022.7,1.3529]
[1743086529230,0.98905,2022.7,2022.6,3.2078]
[1743086530034,2.47222,2023.1,2022.6,3.2078]
[1743086530231,1.3629,2023.1,2022.7,1.4113]
[1743086530437,1.3629,2023.1,2023.0,0.9889]
[1743086530438,2.35178,2023.1,2023.0,0.9889]
[1743086530743,7.40463,2023.2,2022.9,3.2078]
[1743086530943,7.40463,2023.2,2023.1,0.98885]
[1743086531140,4.19683,2023.2,2023.1,0.98885]
[1743086531346,3.208,2023.2,2023.1,0.98885]
[1743086531547,4.1968,2023.2,2023.1,0.98885]
[1743086532043,3.2078,2023.8,2023.1,8.488]
[1743086532245,5.2649,2024.1,2023.4,3.2078]
[1743086532443,5.2649,2024.1,2023.5,1.388]
[1743086532444,0.98861,2023.6,2023.5,1.388]
[1743086532643,0.98861,2023.6,2023.5,1.39542133]
[1743086532837,0.98861,2023.6,2023.5,0.00742133]
[1743086533546,0.98859,2023.7,2023.5,1.39542133]
[1743086533745,1.2948,2023.7,2023.5,1.39542133]
[1743086533945,2.2834,2023.7,2023.5,1.39542133]
[1743086534239,0.7061,2023.8,2023.6,0.98857]
[1743086534439,1.69461,2023.8,2023.7,1.388]
[1743086534648,0.98843,2024.0,2023.7,2.37654]
[1743086534834,5.678,2024.7,2023.7,4.5958]
[1743086535040,0.98834,2024.2,2023.8,1.382]
[1743086535243,5.98219701,2024.7,2023.9,5.617]
[1743086535244,0.98841,2024.0,2023.9,5.617]
[1743086535648,0.98851,2023.8,2023.7,3.2078]
[1743086535943,0.98856,2023.7,2023.6,7.3778]
[1743086536146,0.98861,2023.6,2023.5,0.00742133]
[1743086536740,41.78861,2023.6,2023.5,0.00742133]
[1743086536940,40.8,2023.6,2023.5,0.00742133]
[1743086537239,40.8,2023.6,2023.5,0.99608133]
[1743086537444,40.8,2023.6,2023.5,2.38588133]
[1743086537644,3.2078,2024.1,2023.6,0.98861]
[1743086537844,0.98848,2023.9,2023.7,2.37835]
[1743086538349,0.98851,2023.8,2023.7,1.3898]
[1743086538945,0.9885,2023.9,2023.7,1.3898]
[1743086539150,0.98849,2023.9,2023.7,1.3898]
[1743086539351,0.98851,2023.8,2023.7,1.3898]
[1743086539553,0.6992,2024.0,2023.7,1.3898]
[1743086539748,0.98851,2023.8,2023.7,1.3898]
[1743086540051,44.9962,2024.1,2023.7,1.3898]
[1743086540249,44.9962,2024.1,2023.9,0.98845]
[1743086540443,44.9962,2024.1,2024.0,1.3728]
[1743086540642,4.1962,2024.1,2024.0,1.3728]
[1743086540943,0.98853,2023.8,2023.6,5.22658]
[1743086541141,0.98853,2023.8,2023.7,1.3728]
[1743086541743,3.2078,2024.1,2023.7,2.36136]
[1743086541744,0.9885,2023.9,2023.7,2.36136]
[1743086542043,40.8,2023.9,2023.8,0.98851]
[1743086542443,0.6779,2024.2,2023.7,4.5806]
[1743086542642,0.98844,2024.0,2023.8,0.98849]
[1743086542858,0.98844,2024.0,2023.9,1.2923]
[1743086543040,0.98851,2023.8,2023.7,3.2078]
[1743086543346,41.4779,2024.2,2023.7,5.48862]
[1743086543549,0.9885,2023.9,2023.7,5.48862]
[1743086543753,0.98848,2023.9,2023.7,4.5001]
[1743086544045,0.98851,2023.8,2023.7,4.5001]
[1743086544753,0.98851,2023.8,2023.7,5.48866]
[1743086545143,0.98845,2024.0,2023.8,0.9885]
[1743086545352,0.98851,2023.8,2023.7,4.5001]
[1743086545648,0.98818,2024.5,2023.8,2.47129]
[1743086545847,0.98814,2024.6,2024.4,0.9882]
[1743086546048,0.98814,2024.6,2024.5,1.3234]
[1743086546240,0.98814,2024.6,2024.2,5.988]
[1743086546241,0.98827,2024.3,2024.2,5.988]